lending/lending_fUSD_20250114
["ID","MTS","AMOUNT","RATE_DAILY","PERIOD"]
[348897536,1736865042065,-2462.4615513,9.995e-05,2]
[348897537,1736865042074,-71609.25304019,9.995e-05,2]
[348897538,1736865042084,-10027.65494241,9.995e-05,2]
[348897539,1736865042094,-22424.9070694,9.995e-05,2]
[348897540,1736865042107,-71609.25304019,9.995e-05,2]
[348897541,1736865042116,-6936.34,9.996e-05,2]
[348897542,1736865042125,-1259.0,9.997e-05,2]
[348897543,1736865042135,-3977.0,9.997e-05,2]
[348897544,1736865042148,-537.0,9.997e-05,2]
[348897545,1736865042157,-27982.09206603,9.997e-05,2]
[348897546,1736865042167,-10846.89582938,9.997e-05,2]
[348897547,1736865042177,-2016.0,9.997e-05,2]
[348897548,1736865042187,-1268.0,9.997e-05,2]
[348897549,1736865042199,-3897.0,9.997e-05,2]
[348897550,1736865042208,-637.0,9.997e-05,2]
[348897551,1736865042218,-150.0,9.997e-05,2]
[348897552,1736865042228,-150.0,9.997e-05,2]
[348897553,1736865042238,-1172.0,9.997e-05,2]
[348897554,1736865042248,-635.0,9.997e-05,2]
[348897555,1736865042257,-27982.09206603,9.997e-05,2]
[348897556,1736865042267,-10027.65494241,9.997e-05,2]
[348897557,1736865042277,-71609.25304019,9.997e-05,2]
[348897558,1736865042286,-1028.78,9.997e-05,2]
[348897559,1736865042296,-500.0,9.997e-05,2]
[348897560,1736865042305,-1311.13,9.997e-05,2]
[348897561,1736865042314,-734.12,9.997e-05,2]
[348897562,1736865042323,-1411.96,9.997e-05,2]
[348897563,1736865042333,-1034.82,9.997e-05,2]
[348897564,1736865042342,-1503.62,9.997e-05,2]
[348897565,1736865042355,-1514.44,9.997e-05,2]
[348897566,1736865042364,-1998.96,9.997e-05,2]
[348897567,1736865042373,-3627.37,9.997e-05,2]
[348897568,1736865042382,-9228.89,9.997e-05,2]
[348897569,1736865042391,-151.0,9.997e-05,2]
[348897570,1736865042402,-55183.68569854,9.997e-05,2]
[348897571,1736865042412,-398147.87591831,9.997e-05,2]
[348897572,1736865042423,-55183.68569854,9.998e-05,2]
[348897573,1736865042433,-7352.1892556,9.998e-05,2]
[348897574,1736865042442,-55183.68569854,9.998e-05,2]
[348897575,1736865042451,-200.0,9.998e-05,2]
[348897576,1736865042460,-10027.65494241,9.998e-05,2]
[348897577,1736865042470,-500.0,9.998e-05,2]
[348897578,1736865042479,-570.19269183,9.998e-05,2]
[348897579,1736865042489,-500.0,9.998e-05,2]
[348897580,1736865042499,-317.44792807,9.998e-05,2]
[348897581,1736865042508,-1423.2,9.998e-05,2]
[348897582,1736865042517,-500.0,9.998e-05,2]
[348897583,1736865042527,-572.13,9.998e-05,2]
[348897584,1736865042536,-716.2,9.998e-05,2]
[348897585,1736865042545,-500.0,9.998e-05,2]
[348897586,1736865042555,-500.0,9.998e-05,2]
[348897587,1736865042564,-694.2,9.998e-05,2]
[348897588,1736865042574,-500.0,9.998e-05,2]
[348897589,1736865042584,-500.0,9.998e-05,2]
[348897590,1736865042593,-960.3,9.998e-05,2]
[348897591,1736865042607,-500.0,9.998e-05,2]
[348897592,1736865042616,-500.20014029,9.998e-05,2]
[348897593,1736865042625,-500.0,9.998e-05,2]
[348897594,1736865042635,-500.0,9.998e-05,2]
[348897595,1736865042644,-500.0,9.998e-05,2]
[348897596,1736865042653,-500.0,9.998e-05,2]
[348897597,1736865042663,-502.82911089,9.998e-05,2]
[348897598,1736865042673,-500.0,9.998e-05,2]
[348897599,1736865042682,-500.0,9.998e-05,2]
[348897600,1736865042692,-500.0,9.998e-05,2]
[348897601,1736865042701,-500.0,9.998e-05,2]
[348897602,1736865042711,-500.0,9.998e-05,2]
[348897603,1736865042724,-500.0,9.998e-05,2]
[348897604,1736865042734,-500.0,9.998e-05,2]
[348897605,1736865042743,-500.92698064,9.998e-05,2]
[348897606,1736865042752,-500.93453485,9.998e-05,2]
[348897607,1736865042761,-896.72,9.998e-05,2]
[348897608,1736865042771,-883.71,9.998e-05,2]
[348897609,1736865042780,-500.0,9.998e-05,2]
[348897610,1736865042790,-637.94,9.998e-05,2]
[348897611,1736865042800,-500.0,9.998e-05,2]
[348897612,1736865042809,-500.0,9.998e-05,2]
[348897613,1736865042820,-501.12925772,9.998e-05,2]
[348897614,1736865042829,-500.0,9.998e-05,2]
[348897615,1736865042840,-501.56818994,9.998e-05,2]
[348897617,1736865042853,-500.0,9.998e-05,2]
[348897619,1736865042862,-500.0,9.998e-05,2]
[348897621,1736865042872,-500.0,9.998e-05,2]
[348897623,1736865042882,-1014.7,9.998e-05,2]
[348897624,1736865042891,-500.0,9.998e-05,2]
[348897625,1736865042900,-527.13770077,9.998e-05,2]
[348897626,1736865042910,-2707.2,9.998e-05,2]
[348897627,1736865042919,-500.0,9.998e-05,2]
[348897628,1736865042929,-934.43,9.998e-05,2]
[348897631,1736865042939,-500.0,9.998e-05,2]
[348897633,1736865042948,-500.0,9.998e-05,2]
[348897635,1736865042958,-500.0,9.998e-05,2]
[348897638,1736865042967,-500.0,9.998e-05,2]
[348897640,1736865042976,-500.0,9.998e-05,2]
[348897641,1736865042986,-500.0,9.998e-05,2]
[348897642,1736865042995,-500.0,9.998e-05,2]
[348897643,1736865043004,-500.0,9.998e-05,2]
[348897644,1736865043013,-500.61787739,9.998e-05,2]
[348897645,1736865043022,-500.0,9.998e-05,2]
[348897646,1736865043031,-500.0,9.998e-05,2]
[348897647,1736865043040,-500.0,9.998e-05,2]
[348897648,1736865043049,-964.35,9.998e-05,2]
[348897649,1736865043058,-1058.78,9.998e-05,2]
[348897650,1736865043068,-500.0,9.998e-05,2]
[348897651,1736865043077,-500.0,9.998e-05,2]
[348897652,1736865043086,-500.0,9.998e-05,2]
[348897653,1736865043099,-1135.610592,9.998e-05,2]
[348897654,1736865043109,-500.0,9.998e-05,2]
[348897655,1736865043119,-500.0,9.998e-05,2]
[348897656,1736865043128,-1105.64,9.998e-05,2]
[348897657,1736865043137,-459.5295527,9.998e-05,2]
[348897658,1736865043148,-500.0,9.998e-05,2]
[348897659,1736865043157,-500.0,9.998e-05,2]
[348897660,1736865043167,-500.0,9.998e-05,2]
[348897661,1736865043177,-500.0,9.998e-05,2]
[348897662,1736865043187,-500.0,9.998e-05,2]
[348897663,1736865043196,-1043.76,9.998e-05,2]
[348897664,1736865043205,-1406.23,9.998e-05,2]
[348897665,1736865043214,-1140.57,9.998e-05,2]
[348897666,1736865043223,-500.0,9.998e-05,2]
[348897667,1736865043233,-500.0,9.998e-05,2]
[348897668,1736865043244,-1247.38,9.998e-05,2]
[348897669,1736865043255,-500.0,9.998e-05,2]
[348897670,1736865043265,-601.86,9.998e-05,2]
[348897671,1736865043276,-500.0,9.998e-05,2]
[348897672,1736865043286,-500.0,9.998e-05,2]
[348897673,1736865043295,-782.15,9.998e-05,2]
[348897674,1736865043305,-502.50991207,9.998e-05,2]
[348897675,1736865043315,-1848.4,9.998e-05,2]
[348897676,1736865043325,-500.0,9.998e-05,2]
[348897677,1736865043334,-166.0287352,9.998e-05,2]
[348897678,1736865043343,-500.0,9.998e-05,2]
[348897679,1736865043358,-500.0,9.998e-05,2]
[348897680,1736865043372,-500.0,9.998e-05,2]
[348897681,1736865043381,-500.0,9.998e-05,2]
[348897682,1736865043390,-500.0,9.998e-05,2]
[348897683,1736865043399,-500.71960789,9.998e-05,2]
[348897684,1736865043408,-1249.09,9.998e-05,2]
[348897685,1736865043417,-500.0,9.998e-05,2]
[348897686,1736865043426,-500.0,9.998e-05,2]
[348897687,1736865043437,-500.0,9.998e-05,2]
[348897688,1736865043446,-4446.8,9.998e-05,2]
[348897689,1736865043455,-1000.0,9.998e-05,2]
[348897690,1736865043464,-500.0,9.998e-05,2]
[348897691,1736865043473,-500.0,9.998e-05,2]
[348897692,1736865043482,-1143.65,9.998e-05,2]
[348897693,1736865043491,-500.0,9.998e-05,2]
[348897694,1736865043502,-750.3,9.998e-05,2]
[348897695,1736865043511,-163.691092,9.998e-05,2]
[348897696,1736865043521,-500.0,9.998e-05,2]
[348897697,1736865043530,-500.0,9.998e-05,2]
[348897698,1736865043539,-500.0,9.998e-05,2]
[348897699,1736865043549,-500.0,9.998e-05,2]
[348897700,1736865043559,-1033.69,9.998e-05,2]
[348897701,1736865043569,-1015.91,9.998e-05,2]
[348897702,1736865043579,-516.52025277,9.998e-05,2]
[348897703,1736865043588,-500.0,9.998e-05,2]
[348897704,1736865043597,-565.45277913,9.998e-05,2]
[348897705,1736865043612,-500.0,9.998e-05,2]
[348897706,1736865043622,-687.45,9.998e-05,2]
[348897707,1736865043632,-2653.09,9.998e-05,2]
[348897708,1736865043642,-500.0,9.998e-05,2]
[348897709,1736865043651,-1056.31,9.998e-05,2]
[348897710,1736865043660,-986.55,9.998e-05,2]
[348897711,1736865043669,-500.0,9.998e-05,2]
[348897712,1736865043679,-500.0,9.998e-05,2]
[348897713,1736865043688,-864.28,9.998e-05,2]
[348897714,1736865043697,-500.0,9.998e-05,2]
[348897715,1736865043707,-1430.7,9.998e-05,2]
[348897716,1736865043719,-1637.1,9.998e-05,2]
[348897718,1736865043731,-500.0,9.998e-05,2]
[348897720,1736865043740,-2537.97,9.998e-05,2]
[348897722,1736865043750,-2735.99,9.998e-05,2]
[348897723,1736865043759,-163.691086,9.998e-05,2]
[348897724,1736865043771,-500.0,9.998e-05,2]
[348897725,1736865043780,-500.0,9.998e-05,2]
[348897726,1736865043789,-968.19,9.998e-05,2]
[348897727,1736865043799,-500.0,9.998e-05,2]
[348897728,1736865043809,-500.0,9.998e-05,2]
[348897729,1736865043819,-500.0,9.998e-05,2]
[348897730,1736865043828,-500.0,9.998e-05,2]
[348897731,1736865043837,-1254.25,9.998e-05,2]
[348897732,1736865043851,-549.58,9.998e-05,2]
[348897733,1736865043861,-1149.28,9.998e-05,2]
[348897734,1736865043870,-500.0,9.998e-05,2]
[348897735,1736865043879,-500.0,9.998e-05,2]
[348897736,1736865043888,-1101.09,9.998e-05,2]
[348897737,1736865043897,-5450.55,9.998e-05,2]
[348897738,1736865043906,-163.691087,9.998e-05,2]
[348897739,1736865043915,-500.0,9.998e-05,2]
[348897740,1736865043924,-634.45,9.998e-05,2]
[348897741,1736865043933,-500.0,9.998e-05,2]
[348897742,1736865043943,-151.0,9.998e-05,2]
[348897743,1736865043952,-500.0,9.998e-05,2]
[348897744,1736865043961,-1434.33,9.998e-05,2]
[348897745,1736865043971,-2138.71,9.998e-05,2]
[348897746,1736865043980,-3666.43,9.998e-05,2]
[348897747,1736865043989,-500.0,9.998e-05,2]
[348897748,1736865043999,-5764.29224086,9.998e-05,2]
[348897749,1736865044008,-55183.68569854,9.999e-05,2]
[348897750,1736865044018,-200.0,9.999e-05,2]
[348897751,1736865044030,-399.06854385,9.999e-05,3]
[348897752,1736865044039,-500.0,9.999e-05,2]
[348897753,1736865044049,-287.33227709,9.999e-05,2]
[348897754,1736865044059,-500.0,9.999e-05,2]
[348897755,1736865044068,-500.0,9.999e-05,2]
[348897756,1736865044077,-500.0,9.999e-05,2]
[348897757,1736865044087,-500.0,9.999e-05,2]
[348897758,1736865044099,-500.0,9.999e-05,2]
[348897759,1736865044108,-500.0,9.999e-05,2]
[348897760,1736865044117,-500.0,9.999e-05,2]
[348897761,1736865044126,-500.0,9.999e-05,2]
[348897762,1736865044135,-500.0,9.999e-05,2]
[348897763,1736865044146,-388.95350364,9.999e-05,2]
[348897764,1736865044157,-500.0,9.999e-05,2]
[348897765,1736865044166,-500.0,9.999e-05,2]
[348897766,1736865044176,-503.5772262,9.999e-05,2]
[348897767,1736865044185,-500.0,9.999e-05,2]
[348897768,1736865044194,-505.75,9.999e-05,2]
[348897769,1736865044203,-500.0,9.999e-05,2]
[348897770,1736865044213,-500.0,9.999e-05,2]
[348897771,1736865044222,-500.0,9.999e-05,2]
[348897772,1736865044231,-500.0,9.999e-05,2]
[348897773,1736865044241,-500.0,9.999e-05,2]
[348897774,1736865044250,-500.0,9.999e-05,2]
[348897775,1736865044260,-500.0,9.999e-05,2]
[348897776,1736865044270,-609.96463229,9.999e-05,2]
[348897777,1736865044279,-500.0,9.999e-05,2]
[348897778,1736865044289,-500.0,9.999e-05,2]
[348897779,1736865044298,-500.0,9.999e-05,2]
[348897780,1736865044308,-504.54739561,9.999e-05,2]
[348897781,1736865044318,-500.0,9.999e-05,2]
[348897782,1736865044328,-500.0,9.999e-05,2]
[348897783,1736865044338,-500.0,9.999e-05,2]
[348897784,1736865044348,-500.0,9.999e-05,2]
[348897785,1736865044358,-500.0,9.999e-05,2]
[348897786,1736865044367,-500.0,9.999e-05,2]
[348897787,1736865044377,-500.0,9.999e-05,2]
[348897788,1736865044386,-500.0,9.999e-05,2]
[348897789,1736865044396,-500.0,9.999e-05,2]
[348897790,1736865044405,-500.0,9.999e-05,2]
[348897791,1736865044414,-500.0,9.999e-05,2]
[348897792,1736865044423,-500.0,9.999e-05,2]
[348897793,1736865044431,-500.0,9.999e-05,2]
[348897794,1736865044440,-503.8110469,9.999e-05,2]
[348897795,1736865044449,-500.0,9.999e-05,2]
[348897796,1736865044459,-500.0,9.999e-05,2]
[348897797,1736865044468,-501.6282944,9.999e-05,2]
[348897798,1736865044479,-500.0,9.999e-05,2]
[348897799,1736865044489,-500.0,9.999e-05,2]
[348897800,1736865044500,-500.0,9.999e-05,2]
[348897801,1736865044510,-500.0,9.999e-05,2]
[348897802,1736865044521,-233.53195379,9.999e-05,2]
[348897803,1736865044531,-500.0,9.999e-05,2]
[348897804,1736865044540,-500.0,9.999e-05,2]
[348897805,1736865044550,-500.0,9.999e-05,2]
[348897806,1736865044560,-500.0,9.999e-05,2]
[348897807,1736865044569,-500.0,9.999e-05,2]
[348897808,1736865044579,-500.0,9.999e-05,2]
[348897809,1736865044588,-498.52988441,9.999e-05,2]
[348897810,1736865044599,-500.0,9.999e-05,2]
[348897811,1736865044608,-500.0,9.999e-05,2]
[348897812,1736865044618,-500.0,9.999e-05,2]
[348897813,1736865044627,-500.0,9.999e-05,2]
[348897814,1736865044636,-514.72,9.999e-05,2]
[348897815,1736865044646,-500.0,9.999e-05,2]
[348897816,1736865044655,-500.0,9.999e-05,2]
[348897817,1736865044664,-500.0,9.999e-05,2]
[348897818,1736865044674,-500.0,9.999e-05,2]
[348897819,1736865044683,-500.0,9.999e-05,2]
[348897820,1736865044692,-500.0,9.999e-05,2]
[348897821,1736865044702,-500.0,9.999e-05,2]
[348897822,1736865044713,-500.0,9.999e-05,2]
[348897823,1736865044727,-500.0,9.999e-05,2]
[348897824,1736865044737,-500.0,9.999e-05,2]
[348897825,1736865044748,-500.0,9.999e-05,2]
[348897826,1736865044759,-500.0,9.999e-05,2]
[348897827,1736865044768,-500.0,9.999e-05,2]
[348897828,1736865044778,-500.0,9.999e-05,2]
[348897829,1736865044787,-500.0,9.999e-05,2]
[348897830,1736865044797,-500.0,9.999e-05,2]
[348897831,1736865044808,-500.0,9.999e-05,2]
[348897832,1736865044818,-500.0,9.999e-05,2]
[348897833,1736865044827,-500.0,9.999e-05,2]
[348897834,1736865044837,-500.0,9.999e-05,2]
[348897835,1736865044851,-302.8834462,9.999e-05,2]
[348897836,1736865044860,-607.65332772,9.999e-05,2]
[348897837,1736865044870,-500.0,9.999e-05,2]
[348897838,1736865044879,-500.0,9.999e-05,2]
[348897839,1736865044889,-500.0,9.999e-05,2]
[348897840,1736865044898,-500.0,9.999e-05,2]
[348897841,1736865044907,-501.38911777,9.999e-05,2]
[348897842,1736865044917,-500.0,9.999e-05,2]
[348897843,1736865045144,-500.0,9.999e-05,2]
[348897844,1736865045155,-500.0,9.999e-05,2]
[348897845,1736865045165,-500.99204811,9.999e-05,2]
[348897846,1736865045175,-500.0,9.999e-05,2]
[348897847,1736865045184,-500.0,9.999e-05,2]
[348897848,1736865045193,-500.0,9.999e-05,2]
[348897849,1736865045203,-500.0,9.999e-05,2]
[348897850,1736865045212,-500.0,9.999e-05,2]
[348897851,1736865045222,-500.0,9.999e-05,2]
[348897852,1736865045236,-500.0,9.999e-05,2]
[348897853,1736865045246,-500.0,9.999e-05,2]
[348897854,1736865045255,-500.0,9.999e-05,2]
[348897855,1736865045264,-646.67763788,9.999e-05,2]
[348897856,1736865045273,-508.5898225,9.999e-05,2]
[348897857,1736865045283,-975.85,9.999e-05,2]
[348897858,1736865045293,-500.0,9.999e-05,2]
[348897859,1736865045304,-500.0,9.999e-05,2]
[348897860,1736865045313,-500.0,9.999e-05,2]
[348897861,1736865045323,-395.20491284,9.999e-05,2]
[348897862,1736865045332,-501.65682955,9.999e-05,2]
[348897863,1736865045342,-501.52645156,9.999e-05,2]
[348897864,1736865045356,-504.42083608,9.999e-05,2]
[348897865,1736865045366,-502.45449549,9.999e-05,2]
[348897866,1736865045375,-500.0,9.999e-05,2]
[348897867,1736865045384,-504.50814447,9.999e-05,2]
[348897868,1736865045394,-502.9229593,9.999e-05,2]
[348897869,1736865045403,-500.0,9.999e-05,2]
[348897870,1736865045414,-478.61233048,9.999e-05,2]
[348897871,1736865045423,-500.0,9.999e-05,2]
[348897872,1736865045433,-509.03657847,9.999e-05,2]
[348897873,1736865045442,-508.15097911,9.999e-05,2]
[348897874,1736865045451,-500.0,9.999e-05,2]
[348897875,1736865045460,-500.0,9.999e-05,2]
[348897876,1736865045470,-503.03516467,9.999e-05,2]
[348897877,1736865045479,-500.0,9.999e-05,2]
[348897878,1736865045488,-504.30038305,9.999e-05,2]
[348897880,1736865045498,-511.22985789,9.999e-05,2]
[348897881,1736865045507,-486.56467089,9.999e-05,2]
[348897882,1736865045517,-500.0,9.999e-05,2]
[348897883,1736865045526,-500.0,9.999e-05,2]
[348897884,1736865045535,-500.0,9.999e-05,2]
[348897885,1736865045544,-500.0,9.999e-05,2]
[348897886,1736865045554,-501.76550144,9.999e-05,2]
[348897887,1736865045564,-500.0,9.999e-05,2]
[348897888,1736865045573,-500.0,9.999e-05,2]
[348897889,1736865045582,-500.0,9.999e-05,2]
[348897890,1736865045592,-500.0,9.999e-05,2]
[348897891,1736865045603,-503.76407799,9.999e-05,2]
[348897892,1736865045612,-507.32160035,9.999e-05,2]
[348897893,1736865045621,-503.40657264,9.999e-05,2]
[348897894,1736865045631,-500.0,9.999e-05,2]
[348897895,1736865045640,-500.0,9.999e-05,2]
[348897896,1736865045649,-500.0,9.999e-05,2]
[348897897,1736865045659,-500.0,9.999e-05,2]
[348897898,1736865045669,-354.08948099,9.999e-05,2]
[348897899,1736865045678,-500.0,9.999e-05,2]
[348897900,1736865045689,-500.0,9.999e-05,2]
[348897901,1736865045698,-500.0,9.999e-05,2]
[348897902,1736865045708,-510.70834855,9.999e-05,2]
[348897903,1736865045723,-504.49719731,9.999e-05,2]
[348897904,1736865045734,-506.04499215,9.999e-05,2]
[348897905,1736865045744,-500.0,9.999e-05,2]
[348897906,1736865045753,-500.0,9.999e-05,2]
[348897907,1736865045763,-581.6492401,9.999e-05,2]
[348897908,1736865045773,-500.0,9.999e-05,2]
[348897909,1736865045783,-500.0,9.999e-05,2]
[348897910,1736865045792,-500.0,9.999e-05,2]
[348897911,1736865045804,-500.0,9.999e-05,2]
[348897912,1736865045814,-500.0,9.999e-05,2]
[348897913,1736865045824,-500.0,9.999e-05,2]
[348897915,1736865045834,-500.0,9.999e-05,2]
[348897917,1736865045843,-500.0,9.999e-05,2]
[348897919,1736865045854,-500.0,9.999e-05,2]
[348897920,1736865045864,-500.0,9.999e-05,2]
[348897922,1736865045873,-500.0,9.999e-05,2]
[348897924,1736865045883,-500.0,9.999e-05,2]
[348897925,1736865045892,-6936.34,9.999e-05,2]
[348897926,1736865045902,-500.0,9.999e-05,2]
[348897927,1736865045912,-6936.34,9.999e-05,2]
[348897928,1736865045921,-6936.34,9.999e-05,2]
[348897929,1736865045935,-6936.34,9.999e-05,2]
[348897930,1736865045944,-500.0,9.999e-05,2]
[348897931,1736865045954,-6936.34,9.999e-05,2]
[348897932,1736865045963,-6936.34,9.999e-05,2]
[348897933,1736865045973,-6936.34,9.999e-05,2]
[348897934,1736865045982,-500.0,9.999e-05,2]
[348897935,1736865045991,-6936.34,9.999e-05,2]
[348897936,1736865046000,-6936.34,9.999e-05,2]
[348897937,1736865046009,-6936.34,9.999e-05,2]
[348897938,1736865046019,-500.0,9.999e-05,2]
[348897939,1736865046028,-6936.34,9.999e-05,2]
[348897940,1736865046037,-6936.34,9.999e-05,2]
[348897941,1736865046047,-6936.34,9.999e-05,2]
[348897943,1736865046056,-6936.34,9.999e-05,2]
[348897945,1736865046065,-6936.34,9.999e-05,2]
[348897946,1736865046074,-6936.34,9.999e-05,2]
[348897947,1736865046083,-6936.34,9.999e-05,2]
[348897948,1736865046093,-500.0,9.999e-05,2]
[348897949,1736865046105,-6936.34,9.999e-05,2]
[348897950,1736865046114,-6936.34,9.999e-05,2]
[348897951,1736865046124,-503.41105167,9.999e-05,2]
[348897952,1736865046133,-500.0,9.999e-05,2]
[348897953,1736865046143,-6936.34,9.999e-05,2]
[348897955,1736865046153,-500.0,9.999e-05,2]
[348897956,1736865046163,-6936.34,9.999e-05,2]
[348897957,1736865046172,-6936.50429767,9.999e-05,2]
[348897958,1736865046182,-500.0,9.999e-05,2]
[348897959,1736865046191,-500.0,9.999e-05,2]
[348897960,1736865046200,-500.0,9.999e-05,2]
[348897961,1736865046210,-522.30679196,9.999e-05,2]
[348897962,1736865046222,-643.5351498,9.999e-05,2]
[348897963,1736865046231,-500.0,9.999e-05,2]
[348897964,1736865046241,-500.0,9.999e-05,2]
[348897965,1736865046251,-500.0,9.999e-05,2]
[348897966,1736865046260,-500.0,9.999e-05,2]
[348897967,1736865046270,-500.0,9.999e-05,2]
[348897968,1736865046281,-500.0,9.999e-05,2]
[348897969,1736865046290,-500.0,9.999e-05,2]
[348897970,1736865046299,-500.0,9.999e-05,2]
[348897971,1736865046309,-500.0,9.999e-05,2]
[348897972,1736865046318,-500.0,9.999e-05,2]
[348897973,1736865046329,-500.0,9.999e-05,2]
[348897974,1736865046338,-500.0,9.999e-05,2]
[348897975,1736865046350,-500.0,9.999e-05,2]
[348897976,1736865046359,-500.0,9.999e-05,2]
[348897977,1736865046368,-500.0,9.999e-05,2]
[348897978,1736865046377,-500.0,9.999e-05,2]
[348897979,1736865046386,-503.96429646,9.999e-05,2]
[348897980,1736865046396,-500.0,9.999e-05,2]
[348897981,1736865046406,-507.09721686,9.999e-05,2]
[348897982,1736865046418,-501.75497315,9.999e-05,2]
[348897983,1736865046428,-507.19037227,9.999e-05,2]
[348897984,1736865046439,-500.0,9.999e-05,2]
[348897985,1736865046450,-500.0,9.999e-05,2]
[348897986,1736865046459,-503.2084434,9.999e-05,2]
[348897987,1736865046468,-638.63,9.999e-05,2]
[348897988,1736865046477,-500.0,9.999e-05,2]
[348897989,1736865046487,-500.0,9.999e-05,2]
[348897990,1736865046495,-500.0,9.999e-05,2]
[348897991,1736865046505,-500.0,9.999e-05,2]
[348897992,1736865046514,-500.0,9.999e-05,2]
[348897993,1736865046523,-500.0,9.999e-05,2]
[348897994,1736865046532,-500.0,9.999e-05,2]
[348897995,1736865046542,-500.0,9.999e-05,2]
[348897996,1736865046551,-500.0,9.999e-05,2]
[348897997,1736865046559,-155.98,9.999e-05,2]
[348897998,1736865046568,-500.0,9.999e-05,2]
[348897999,1736865046578,-500.0,9.999e-05,2]
[348898000,1736865046589,-500.0,9.999e-05,2]
[348898001,1736865046599,-500.0,9.999e-05,2]
[348898002,1736865046609,-500.0,9.999e-05,2]
[348898003,1736865046619,-500.0,9.999e-05,2]
[348898004,1736865046628,-500.0,9.999e-05,2]
[348898005,1736865046637,-500.0,9.999e-05,2]
[348898006,1736865046647,-500.0,9.999e-05,2]
[348898007,1736865046656,-518.96813558,9.999e-05,2]
[348898008,1736865046665,-500.0,9.999e-05,2]
[348898009,1736865046675,-500.0,9.999e-05,2]
[348898010,1736865046684,-500.0,9.999e-05,2]
[348898011,1736865046693,-500.0,9.999e-05,2]
[348898012,1736865046703,-500.0,9.999e-05,2]
[348898013,1736865046712,-500.0,9.999e-05,2]
[348898014,1736865046724,-500.0,9.999e-05,2]
[348898015,1736865046736,-500.0,9.999e-05,2]
[348898016,1736865046747,-503.30308342,9.999e-05,2]
[348898017,1736865046757,-500.0,9.999e-05,2]
[348898018,1736865046768,-500.0,9.999e-05,2]
[348898019,1736865046777,-500.0,9.999e-05,2]
[348898020,1736865046787,-500.0,9.999e-05,2]
[348898021,1736865046797,-500.0,9.999e-05,2]
[348898022,1736865046806,-500.0,9.999e-05,2]
[348898023,1736865046815,-500.0,9.999e-05,2]
[348898024,1736865046824,-500.0,9.999e-05,2]
[348898025,1736865046833,-393.67656125,9.999e-05,2]
[348898026,1736865046843,-500.0,9.999e-05,2]
[348898027,1736865046856,-943.12,9.999e-05,2]
[348898028,1736865046865,-500.0,9.999e-05,2]
[348898029,1736865046875,-500.0,9.999e-05,2]
[348898030,1736865046884,-3641.16,9.999e-05,2]
[348898031,1736865046893,-500.0,9.999e-05,2]
[348898032,1736865046902,-500.0,9.999e-05,2]
[348898033,1736865046911,-500.0,9.999e-05,2]
[348898034,1736865046921,-500.0,9.999e-05,2]
[348898035,1736865046930,-500.0,9.999e-05,2]
[348898036,1736865046939,-500.0,9.999e-05,2]
[348898037,1736865046948,-500.0,9.999e-05,2]
[348898038,1736865046958,-500.0,9.999e-05,2]
[348898039,1736865046967,-500.0,9.999e-05,2]
[348898040,1736865046977,-500.0,9.999e-05,2]
[348898041,1736865046986,-500.0,9.999e-05,2]
[348898042,1736865046995,-877.39,9.999e-05,2]
[348898043,1736865047006,-500.0,9.999e-05,2]
[348898044,1736865047015,-500.0,9.999e-05,2]
[348898045,1736865047024,-500.0,9.999e-05,2]
[348898046,1736865047033,-500.0,9.999e-05,2]
[348898047,1736865047043,-500.0,9.999e-05,2]
[348898048,1736865047052,-500.0,9.999e-05,2]
[348898049,1736865047063,-500.0,9.999e-05,2]
[348898050,1736865047072,-500.0,9.999e-05,2]
[348898051,1736865047081,-500.0,9.999e-05,2]
[348898052,1736865047091,-500.0,9.999e-05,2]
[348898053,1736865047103,-415.42160815,9.999e-05,2]
[348898054,1736865047112,-500.0,9.999e-05,2]
[348898055,1736865047122,-500.0,9.999e-05,2]
[348898056,1736865047130,-500.0,9.999e-05,2]
[348898057,1736865047140,-500.0,9.999e-05,2]
[348898058,1736865047150,-500.0,9.999e-05,2]